Workbook

Sheet global grafico (hidden)
K12: hasta 50.000 UF | M12: hasta 75.000 UF
D13: DESDE | E13: FACTOR | F13: REBAJA | G13: IMPUESTO | K13: PROPYME TRANSP. | M13: PROPYME GENERAL | O13: REGIMEN GENERAL
D14: M$0. | E14: 0.0% | F14: M$0.
D15: M$8.3 | E15: 4.0% | F15: M$0.3 | I15: ingresos | K15: $$$$$$$$$$ | M15: $$$$$$$$$$ | O15: $$$$$$$$$$
D16: M$18.4 | E16: 8.0% | F16: M$1.1 | I16: - gastos | K16: $$$$$$ | M16: $$$$$$ | O16: $$$$$$
D17: M$30.6 | E17: 13.5% | F17: M$2.7 | I17: = utilidad | K17: 100,000,000 | M17: 100,000,000 | O17: 100,000,000
D18: M$42.9 | E18: 23.0% | F18: M$6.8
D19: M$55.1 | E19: 30.4% | F19: M$10.9
D20: M$73.5 | E20: 35.0% | F20: M$14.3 | I20: % impuesto | K20: 0% | M20: 25% | O20: 27%
D21: M$189.8 | E21: 40.0% | F21: M$23.8 | I21: impuesto | K21: =+K17*K20 -> 0 | M21: =+M17*M20 -> 25,000,000 | O21: =+O17*O20 -> 27,000,000
O22: =O21*0.65 -> 17,550,000
F23: IMPUESTO | G23: $$$$$$
F24: CRÉDITO | G24: $$$$
F25: PAGO O DEV | G25: $$$

Sheet Global
L1: UF | M1: 38,800.00
C2: 2A CATEGORIA
C3: UTM Dic 2024 | D3: 67,294 | F3: renta bruta | G3: =M15 -> $ 288,800,000 | H3: =G3/M17 -> 358 UTA | K3: N° PROPIEDADES | M3: 0 | N3: + 2 DFL2
C4: (*ajustar) | G4: =IF(G3>M17*150,0,IF(P8>M17*8,M17*8*N17,P8))*-1 -> $ 0 | H4: intereses | K4: VALOR PROPIEDAD | M4: 70,000,000
F5: renta imponible | G5: =SUM(G3:G4) -> $ 288,800,000 | K5: VALOR ARRIENDO | M5: 350,000
C6: TABLA DE IMPUESTO GLOBAL COMPLEMENTARIO | K6: CUOTA CRÉDITO | M6: 250,000
C7: DESDE | D7: HASTA | E7: FACTOR | F7: REBAJA | G7: IMPUESTO | K7: ="ARRIENDOS ANUALES DE "&IF(N3=" + 1 DFL2",M3+1,IF(N3=" + 2 DFL2",M3+2,M3)) &" PROP" -> ARRIENDOS ANUALES DE 2 PROP | M7: =M5*12*IF(N3=" + 1 DFL2",M3+1,IF(N3=" + 2 DFL2",M3+2,M3)) -> 8,400,000 | O7: CAPITAL | P7: INTERESES | Q7: SEGUROS
B8: 1 | C8: 0 | D8: =162*D3 -> 10,901,628 | E8: EXENTO | G8: =IF(G5<=D8,0,0) -> 0 | K8: ="DIVIDENDOS ANUALES DE "&IF(N3=" + 1 DFL2",M3+1,IF(N3=" + 2 DFL2",M3+2,M3)) &" PROP" -> DIVIDENDOS ANUALES DE 2 PROP | M8: =M6*12*IF(N3=" + 1 DFL2",M3+1,IF(N3=" + 2 DFL2",M3+2,M3)) -> 6,000,000 | O8: =M8*51% -> 3,060,000 | P8: =M8*43% -> 2,580,000 | Q8: =M8*6% -> 360,000 | R8: =SUM(O8:Q8) -> 6,000,000
B9: 2 | C9: =+D8+1 -> 10,901,629 | D9: =360*D3 -> 24,225,840 | E9: 0.040 | F9: =6.48*D3 -> 436,065.12 | G9: =IF(AND($G$5>=C9,$G$5<=D9),($G$5*E9)-F9,0) -> 0 | K9: ="CONTRIBUCIONES "&M3&" PROP" -> CONTRIBUCIONES 0 PROP | M9: =N9*M3 -> 0 | N9: 70,000
B10: 3 | C10: 24,225,841 | D10: =600*D3 -> 40,376,400 | E10: 0.080 | F10: =20.88*D3 -> 1,405,098.72 | G10: 0 | K10: ="ARRIENDOS AFECTOS "&M3&" PROP" -> ARRIENDOS AFECTOS 0 PROP | M10: =M3*M5*12 -> 0
B11: 4 | C11: 40,376,401 | D11: =840*D3 -> 56,526,960 | E11: 0.135 | F11: =53.88*D3 -> 3,625,800.72 | G11: 0 | K11: VENTA PROPIEDAD | M11: =M25 -> 38,800,000 | N11: > 8,000 UF
B12: 5 | C12: 56,526,961 | D12: =1080*D3 -> 72,677,520 | E12: 0.230 | F12: =133.68*D3 -> 8,995,861.92 | G12: 0 | K12: INGRESOS X SUELDO | M12: 70,000,000
B13: 6 | C13: 72,677,521 | D13: =1440*D3 -> 96,903,360 | E13: 0.304 | F13: =213.6*D3 -> 14,373,998.40 | G13: 0 | K13: INGRESOS POR RETIROS 14A | M13: 150,000,000 | N13: 27.0% | O13: =M13*N13 -> 40,500,000 | P13: 65.0% | Q13: =O13*P13 -> 26,325,000
B14: 7 | C14: 96,903,361 | D14: =3720*D3 -> 250,333,680 | E14: 0.350 | F14: =279.84*D3 -> 18,831,552.96 | G14: 0 | K14: INGRESOS POR HONORARIOS | M14: 30,000,000 | N14: 14.50% | O14: =M14*N14 -> 4,350,000 | P14: (ppm de honorarios)
B15: 8 | C15: =+D14+1 -> 250,333,681 | D15: y mas | E15: 0.400 | F15: =465.84*D3 -> 31,348,236.96 | G15: =IF($G$5>=C15,($G$5*E15)-F15,0) -> 84,171,763 | L15: renta bruta | M15: =SUM(M10:M14) -> 288,800,000
F17: Impuesto global | G17: =SUM(G8:G15) -> 84,171,763 | K17: UTA 2024 | L17: https://www.sii.cl/valores_y_fechas/utm/utm2022.htm | M17: 807,528 | N17: =IF(AND(H3>90,H3<=150),250-(1.667*H3),100)/100 -> 1.00
F18: Contribuciones | G18: =IF(M9>G17,G17,M9)*-1 -> 0
F19: Crédito Honorarios | G19: =O14*-1 -> -4,350,000
F20: Crédito retiros | G20: =Q13*-1 -> -26,325,000
L21: uf | M21: 1,500 | N21: Adquisición (Compra, Posesion Efectiva, etc)
C22: *sueldo más retiros aumentan tu capacidad de crédito | F22: =IF(G22<=0,"Devolución","Pago") -> Pago | G22: =SUM(G17:G20) -> $ 53,496,763 | L22: uf | M22: 2,500 | N22: venta antes de un año
L23: uf | M23: =M22-M21 -> 1,000 | N23: utilidad
C24: SIN DFL2
C25: + 1 DFL2 | M25: =M23*M1 -> 38,800,000 | N25: en CL$ | O25: =8000*M1 -> 310,400,000 | P25: en CL$
C26: + 2 DFL2
